Cogmind - Beta 9.6 @@@ ROGUE MODE // 2020.07.28 @ 10:24:35 Player: Phillammon Result: Self-destructed Performance ------------- Evolutions (2) 1000 Regions Visited (5) 1000 Robots Destroyed (17) 85 Value Destroyed (296) 296 Prototype IDs (4) 80 Alien Tech Used (0) 0 Bonus (14) 14 TOTAL SCORE: 2475 Bonus ------- Follower Combat Kills 14 Cogmind --------- Core Integrity 298/550 Matter 200/300 Energy 73/100 System Corruption 2% Temperature Cool (18) Movement Core (50) Location -8/Storage Parts ------- > --- POWER (2) -------- (None) > --- PROPULSION (4) --- (None) > --- UTILITY (3) ------ Hacking Suite Hacking Suite > --- WEAPON (2) ------- (None) > --- INVENTORY (4) ---- (None) Peak State ------------ > --- POWER ------------ Light Nuclear Core Light Nuclear Core > --- PROPULSION ------- Flight Unit Flight Unit Flight Unit Flight Unit > --- UTILITY ---------- Small Storage Unit Hacking Suite Hacking Suite > --- WEAPON ----------- Light Assault Rifle Light Assault Rifle > --- INVENTORY -------- Nuclear Core Flight Unit Flight Unit Flight Unit Improved Flight Unit Maneuvering Thrusters [Rating: 20] Favorites ----------- Power Light Nuclear Core Engine Light Ion Engine Power Core Light Nuclear Core Propulsion Flight Unit Treads Light Treads Leg Aluminum Leg Flight Unit Flight Unit Utility Hacking Suite Device Long-range Tractor Beam Storage Small Storage Unit Hackware Hacking Suite Weapon Light Assault Rifle Energy Gun EM Pulse Gun Ballistic Gun Light Assault Rifle Build | -11 -10 -9 -9 -8 -8 ------- Run | Scr Mat Mat Min Mat Sto Slots Evolved 4 | . . 2 . 2 . Power 1 | . . . . 1 . Propulsion 2 | . . 1 . 1 . Utility 1 | . . 1 . . . Weapon . | . . . . . . Parts Attached 38 | 2 4 4 12 5 11 Power 10 | . 1 . 2 1 6 Engine 5 | . 1 . 1 . 3 Core 5 | . . . 1 1 3 Reactor . | . . . . . . Propulsion 16 | 2 1 1 6 2 4 Treads 2 | 2 . . . . . Leg . | . . . . . . Wheel . | . . . . . . Hover . | . . . . . . Flight 14 | . 1 1 6 2 4 Utility 7 | . 1 2 3 . 1 Device 2 | . . 1 . . 1 Storage 2 | . 1 . 1 . . Processor . | . . . . . . Hackware 3 | . . 1 2 . . Protection . | . . . . . . Artifact . | . . . . . . Weapon 5 | . 1 1 1 2 . Energy Gun . | . . . . . . Energy Cannon . | . . . . . . Ballistic Gun 5 | . 1 1 1 2 . Ballistic Cannon . | . . . . . . Launcher . | . . . . . . Special Weapon . | . . . . . . Impact Weapon . | . . . . . . Slashing Weapon . | . . . . . . Piercing Weapon . | . . . . . . Special Melee Weapon . | . . . . . . Unidentified Prototypes 4 | . . 1 . . 3 Parts Lost 21 | . 1 3 2 2 13 Power 6 | . 1 1 . . 4 Propulsion 10 | . . 1 2 1 6 Utility 2 | . . 1 . . 1 Weapon 3 | . . . . 1 2 Highest Loss Streak 10 | . 1 2 1 2 10 Average Slot Usage (%) 74 | . 83 27 87 85 76 Engine 3 | . 6 2 1 . 1 Core 5 | . . . 9 10 10 Treads 8 | . 26 . . . . Flight 16 | . . 5 32 34 29 Device 1 | . . 5 . . 1 Storage 11 | . 24 . 6 9 6 Hackware 12 | . . 11 24 18 18 Energy Gun 4 | . 13 . . . . Ballistic Gun 10 | . 10 2 14 13 8 Naked Turns . | . . . . . . Heaviest Build 19 | 11 19 4 12 16 16 Greatest Support 40 | 40 40 4 12 16 16 Greatest Overweight (x) 1 | . . 1 . . 1 Average Overweight (x) . | . . . . . . Largest Inventory Capacity 10 | 6 10 4 6 6 6 Average Capacity 6 | 6 9 4 5 6 5 Most Carried 7 | 5 7 4 6 6 6 Average Carried 4 | 3 4 3 4 5 4 Final Capacity 6 | 6 4 4 6 6 4 Final Carried 6 | 2 3 4 6 6 . Class Distribution -------------------- 50% | Mutant 23% | Scavenger-Sprinter 16% | Hacker-Mutant 10% | Scavenger-Mutant Dominant Class ---------------- Mutant | -10/Materials Mutant | -9/Materials Hacker-Mutant | -9/Mines Scavenger-Sprinter | -8/Materials Scavenger-Sprinter | -8/Storage Resources | -11 -10 -9 -9 -8 -8 ----------- Run | Scr Mat Mat Min Mat Sto Matter Collected 510 | 200 71 58 181 . . Remotely 12 | . . 12 . . . Salvage Created 484 | . 144 100 210 30 . Parts 38 | . 7 8 19 4 . Haulers Intercepted . | . . . . . . Recyclers Shooed . | . . . . . . Parts Field Recycled . | . . . . . . Retrieved Matter . | . . . . . . Parts Self-Destructed . | . . . . . . Prevented . | . . . . . . Kills | -11 -10 -9 -9 -8 -8 ------- Run | Scr Mat Mat Min Mat Sto Combat Hostiles Destroyed 16 | . 3 4 7 2 . Guns 16 | . 3 4 7 2 . Classes Destroyed 4 | . 1 2 1 . . Recycler 1 | . . . 1 . . Swarmer 12 | . . 3 7 2 . Grunt 3 | . 3 . . . . Sentry 1 | . . 1 . . . Best Kill Streak 7 | . 1 4 7 2 . Combat Bots Only 7 | . 1 4 7 2 . Max Kills in Single Turn 1 | . 1 1 1 1 . Gunslinging . | . . . . . . Exploded . | . . . . . . Melee . | . . . . . . Uniques/NPCs Destroyed . | . . . . . . Combat | -11 -10 -9 -9 -8 -8 -------- Run | Scr Mat Mat Min Mat Sto Damage Taken 1909 | . 353 349 328 242 637 Core 645 | . 57 230 106 51 201 Absorbed by Shields 68 | . . . . . 68 Core Remaining (%) 64 | 100 77 . 16 . . Volleys Fired 40 | . 4 11 19 6 . Largest 2 | . 2 1 2 2 . Hottest 60 | . 60 23 43 40 . Shots Fired 56 | . 8 11 28 9 . Gun 56 | . 8 11 28 9 . Cannon . | . . . . . . Launcher . | . . . . . . Special . | . . . . . . Kinetic 52 | . 4 11 28 9 . Thermal . | . . . . . . Explosive . | . . . . . . Electromagnetic 4 | . 4 . . . . Robot Hit Streak 14 | . 3 7 14 4 . Robot Miss Streak 4 | . 2 1 4 2 . Penetration Max . | . . . . . . Secondary Targets 1 | . 1 . . . . Max Gunslinging Chain 1 | . 1 . . . . Shots Hit Robots 38 | . 5 10 18 5 . Core Hits 23 | . 5 5 10 3 . Critical Hits 2 | . . 1 1 . . Critical Kills . | . . . . . . Critical Parts Destroyed 2 | . . 1 1 . . Melee Attacks . | . . . . . . Impact . | . . . . . . Slashing . | . . . . . . Piercing . | . . . . . . Sneak Attacks . | . . . . . . Combat Hostiles . | . . . . . . Follow-up Attacks . | . . . . . . Damage Inflicted 595 | . 84 162 277 72 . Guns 595 | . 84 162 277 72 . Cannons . | . . . . . . Explosions . | . . . . . . Melee . | . . . . . . Ramming . | . . . . . . Kinetic 537 | . 26 162 277 72 . Thermal . | . . . . . . Explosive . | . . . . . . Electromagnetic 58 | . 58 . . . . Impact . | . . . . . . Slashing . | . . . . . . Piercing . | . . . . . . Highest Corruption 2 | . . . . . 2 Average Corruption 2 | . . . . . 2 Corruption Purged . | . . . . . . Overload Shots . | . . . . . . Overflow Damage . | . . . . . . Projectiles . | . . . . . . Explosions . | . . . . . . Melee . | . . . . . . Knockbacks . | . . . . . . Impact . | . . . . . . Kinetic . | . . . . . . Secondary . | . . . . . . Self-Inflicted Damage . | . . . . . . Shots . | . . . . . . Rammed . | . . . . . . Targets Rammed . | . . . . . . Kicked . | . . . . . . Crushed . | . . . . . . Highest Temperature 234 | . 15 . 12 17 234 Average Temperature 29 | . 7 . 5 9 36 Received Heat Transfer 726 | . 201 123 . 72 330 Effects 1 | . . . . . 1 Energy Bleed 1 | . . . . . 1 Siege Activations . | . . . . . . Robots Corrupted . | . . . . . . Combat Hostiles . | . . . . . . Parts Fried . | . . . . . . Impact Corruptions . | . . . . . . Robots Melted . | . . . . . . Combat Hostiles . | . . . . . . Parts Melted . | . . . . . . Heat Transferred . | . . . . . . Parts Sabotaged . | . . . . . . Parts Stolen . | . . . . . . Parts Stripped . | . . . . . . Power Chain Reactions . | . . . . . . Missiles Intercepted . | . . . . . . Alert | -11 -10 -9 -9 -8 -8 ------- Run | Scr Mat Mat Min Mat Sto Peak Influence 319 | . 85 195 319 179 155 Average Influence 112 | . 43 88 208 151 120 Maximum Alert Level 1 | . . . 1 . . Low Security (%) 88 | 100 100 100 52 100 100 Level 1 11 | . . . 47 . . Level 2 . | . . . . . . Level 3 . | . . . . . . Level 4 . | . . . . . . Level 5 . | . . . . . . High Security . | . . . . . . Max Security . | . . . . . . Squads Dispatched 8 | . 1 4 . . 3 Investigation 1 | . . 1 . . . Extermination . | . . . . . . Reinforcement 7 | . 1 3 . . 3 Assault . | . . . . . . Garrison . | . . . . . . Intercept . | . . . . . . Construction Impeded . | . . . . . . Haulers Reinforced . | . . . . . . Stealth | -11 -10 -9 -9 -8 -8 --------- Run | Scr Mat Mat Min Mat Sto Distress Signals 4 | . . 1 . 1 2 Communications Jammed . | . . . . . . Distress Signals . | . . . . . . Times Spotted 79 | . 9 17 15 9 29 Peak Tracking Total 18 | . 4 7 4 8 18 Tactical Retreats 7 | . 1 2 1 . 3 Traps | -11 -10 -9 -9 -8 -8 ------- Run | Scr Mat Mat Min Mat Sto Traps Triggered 5 | . 1 1 . . 3 Indirectly . | . . . . . . Trap Hack Attempts . | . . . . . . Triggered . | . . . . . . Disarmed . | . . . . . . Reprogrammed . | . . . . . . Reused . | . . . . . . Traps Extracted . | . . . . . . Installed . | . . . . . . Triggered . | . . . . . . Machines | -11 -10 -9 -9 -8 -8 ---------- Run | Scr Mat Mat Min Mat Sto Machines Disabled 1 | . . . 1 . . Max in Single Turn 1 | . . . 1 . . Machines Sabotaged . | . . . . . . Garrisons Compromised . | . . . . . . Overloaded Fab Kills . | . . . . . . Fab Network Shutdowns . | . . . . . . Hacking | -11 -10 -9 -9 -8 -8 --------- Run | Scr Mat Mat Min Mat Sto Machines Accessed 3 | . . . 1 . 2 Terminals 3 | . . . 1 . 2 Fabricators . | . . . . . . Repair Stations . | . . . . . . Recycling Units . | . . . . . . Scanalyzers . | . . . . . . Garrison Access . | . . . . . . Total Hacks 8 | . . . 5 . 3 Successful 5 | . . . 3 . 2 Failed 3 | . . . 2 . 1 Catastrophic . | . . . . . . Database Lockouts . | . . . . . . Manual 5 | . . . 5 . . Terminals 8 | . . . 5 . 3 Fabricators . | . . . . . . Repair Stations . | . . . . . . Recycling Units . | . . . . . . Scanalyzers . | . . . . . . Garrison Access . | . . . . . . Terminal Hacks 3 | . . . 1 . 2 Open Door 2 | . . . . . 2 Terminal Index 1 | . . . 1 . . Fabricator Hacks . | . . . . . . Repair Station Hacks . | . . . . . . Recycling Unit Hacks . | . . . . . . Scanalyzer . | . . . . . . Garrison Access Hacks . | . . . . . . Unauthorized Hacks 2 | . . . 2 . . Terminals 2 | . . . 2 . . Botnet 1 | . . . 1 . . Operators 1 | . . . 1 . . Fabricators . | . . . . . . Repair Stations . | . . . . . . Recycling Units . | . . . . . . Scanalyzers . | . . . . . . Garrison Access . | . . . . . . Data Cores Recovered . | . . . . . . Used . | . . . . . . Hacking Detections 2 | . . . 1 . 1 Full Trace Events . | . . . . . . Feedback Events . | . . . . . . Feedback Blocked . | . . . . . . Robot Schematics Acquired . | . . . . . . Robots Built . | . . . . . . Matter . | . . . . . . Time . | . . . . . . Total Robot Build Rating . | . . . . . . Part Schematics Acquired . | . . . . . . Parts Built . | . . . . . . Matter . | . . . . . . Time . | . . . . . . Total Part Build Rating . | . . . . . . Parts Repaired . | . . . . . . Time . | . . . . . . Parts Recycled . | . . . . . . Recycled Matter . | . . . . . . Retrieved Matter . | . . . . . . Retrieved Components . | . . . . . . Parts Scanalyzed . | . . . . . . Part Schematics Acquired . | . . . . . . Parts Damaged . | . . . . . . Bothacking | -11 -10 -9 -9 -8 -8 ------------ Run | Scr Mat Mat Min Mat Sto Used RIF Installer . | . . . . . . Robots Hacked . | . . . . . . Non-combat . | . . . . . . Combat . | . . . . . . Robot Hacks Applied . | . . . . . . Relay Couplers Released . | . . . . . . Robots Rewired . | . . . . . . Allies Hacked . | . . . . . . Hacks Repelled . | . . . . . . Allies | -11 -10 -9 -9 -8 -8 -------- Run | Scr Mat Mat Min Mat Sto Total Allies 2 | . . . 2 . . Largest Group 2 | . . . 2 . . Highest-Rated Group 39 | . . . 39 . . Highest-Rated Ally 31 | . . . 31 . . Total Orders . | . . . . . . Ally Attacks 4 | . . . 4 . . Total Damage 43 | . . . 43 . . Kills 2 | . . . 2 . . Allies Corrupted . | . . . . . . Allies Melted . | . . . . . . Intel | -11 -10 -9 -9 -8 -8 ------- Run | Scr Mat Mat Min Mat Sto Robot Analysis Total . | . . . . . . Derelict Logs Recovered . | . . . . . . Drone Launches . | . . . . . . Drone Recoveries . | . . . . . . Exploration | -11 -10 -9 -9 -8 -8 ------------- Run | Scr Mat Mat Min Mat Sto Turns Passed 959 | 6 315 150 226 55 207 Spaces Moved 1297 | 1 210 262 283 90 451 Core 142 | . . 139 . . 3 Treads 170 | 1 169 . . . . Legs . | . . . . . . Wheels . | . . . . . . Hover . | . . . . . . Flight 985 | . 41 123 283 90 448 Fastest Speed 31 | 160 40 40 34 31 31 Average Speed 52 | 160 136 45 34 31 33 Slowest Speed 160 | 160 160 100 40 34 117 Overloaded Moves . | . . . . . . Propulsion Burnouts . | . . . . . . Robots Hopped 27 | . . 2 2 2 21 Cave-ins Triggered . | . . . . . . Exploration Rate (%) 36 | 2 43 40 61 11 62 Regions Visited 5 Branch Regions 2 Pre-discovered Areas . | . . . . . . Known Exits Taken . | . . . . . . Unknown Exits Taken 5 | 1 1 1 1 1 . Scrap Searched . | . . . . . . Spaces Dug . | . . . . . . Terrain Destroyed . | . . . . . . Melee . | . . . . . . Projectile . | . . . . . . AOE . | . . . . . . Actions | -11 -10 -9 -9 -8 -8 --------- Run | Scr Mat Mat Min Mat Sto Total 1494 | 6 233 277 384 106 488 Wait 59 | . 1 . 58 . . Move 1244 | . 209 258 278 85 414 Hop 21 | . . 1 2 2 16 Pick Up 23 | . 7 2 9 5 . Fast Attach 15 | . . 4 4 3 4 Attach 18 | . 3 . 6 2 7 Detach 1 | . . . . . 1 Swap 5 | 2 1 . 2 . . Drop 28 | 4 8 1 6 3 6 Fire 40 | . 4 11 19 6 . Melee . | . . . . . . Ram . | . . . . . . Kick . | . . . . . . Crush . | . . . . . . Escape Stasis 40 | . . . . . 40 Rewire . | . . . . . . Trap . | . . . . . . Miscellaneous . | . . . . . . Route ------- -11/Scrapyard -10/Materials -9/Materials -9/Mines -8/Materials -8/Storage History --------- Turn | Location | Event 7 | -11/Scrapyard | Discovered new exit (range 0) 7 | -11/Scrapyard | Entered Materials 316 | -10/Materials | Discovered new exit (range 16) 322 | -10/Materials | Entered another Materials area 322 | -9/Materials | Evolved 2 slots: Propulsion x1, Utility x1 327 | -9/Materials | Build established: Mutant 461 | -9/Materials | Discovered new exit (range 12) 463 | -9/Materials | Core integrity fell below 50% 472 | -9/Materials | Entered Mines 500 | -9/Mines | Destroyed 7 combat bots 607 | -9/Mines | Discovered new exit (range 15) 663 | -9/Mines | Assembled infested the area 668 | -9/Mines | Assisted by a Guerilla fighting off Assembled 684 | -9/Mines | Core integrity fell below 20% 698 | -9/Mines | Entered Materials 698 | -8/Materials | Evolved 2 slots: Power x1, Propulsion x1 737 | -8/Materials | Discovered new exit (range 14) 753 | -8/Materials | Entered Storage 884 | -8/Storage | Lost 3 parts (2p1w) 960 | -8/Storage | Self-destructed Last Messages --------------- 00901_ Field strength at 61. 00902_ Field strength at 52. 00902_ Flight Unit destroyed. 00905_ Identified Imp. Flight Unit. 00905_ Malfunction: Heat surge (+243). 00906_ Overheating: Energy bleed (-28). 00906_ Dropped Faulty Imp. Flight Unit. 00906_ Field strength at 18. 00907_ Field strength at 8. 00908_ Lgt. Assault Rifle destroyed. 00908_ Stasis field depleted. 00908_ Lgt. Nuclear Core destroyed. 00908_ Flight Unit destroyed. 00910_ Dropped Sml. Storage Unit. 00918_ K-01 Serf collects debris. 00919_ W-25 Informer sends out distress signal. 00929_ Lgt. Deuterium Engine destroyed. 00952_ Flight Unit destroyed. 00953_ Maneuvering Thrusters destroyed. 00958_ Flight Unit destroyed. Map ----- +----------------------------------------------------+ | ?????????????????????????????????????????????????? | | ????????????????????????######################???? | | ????????????????????????# #???? | | ????????????????????????# #???? | | ???????????????########## #???? | | ???????????????# # ########/#########???? | | ???????????????# [ # #???# #???????? | | ???????????????# # ##??# #???????? | | ???????????????# =# T#??# #???????? | | ???????????????# /# #???# #???????? | | ???????????????# ! [+ #???# #???????? | | ???????????????# # #???# #???????? | | ???????????????# ] # ##### #???????? | | ???????????????# #g + #???????? | | ???????????????##########g ##### #???????? | | ????????????????????????# #???##########???????? | | ????????????????????????# #????????????????????? | | ?????????????????????#### #????????????????????? | | ????????????????######T## Y #????????????????????? | | ????????????????#*** #g g#????????????????????? | | ????????????????# /o g#????????????????????? | | ????????????????#*** #g #????????????????????? | | ????????????????######### #????????????????????? | | ????????????????????????# #????????????????????? | | ????????????????#?####??# #????????????????????? | | ????????????##### #"T"??#@b #????????????????????? | | ????????????# ?# #????????????????????? | | ????????????+ ?# #????????????????????? | | ????????????# # #?####???????????????? | | ????????????# #gYY#?#"""#??????????????? | | ???????????????"""" r #?#"Y"#??????????????? | | ???????????????"""" #^ ^###" "#####??????????? | | ???????????????"""" # ## ##?????????? | | ???????????????########?# bY##= ! #?????????? | | ????????????????????????# k ## #??????????? | | ????????????????????????# g ## """"#??????????? | | ????????????????????????# ## """"#??????????? | | ???????????????#####????# ## """"#??????????? | | ???????????????# #????# ## """"#??????????? | | ???????????????# #????# ## #??????????? | | ??????# ######?# #????# r## ######?????? | | ??????#! #?# #????# #######+### #?????? | | ??????# #?# #????# #?????? | | ??????# """ #?# ###### ###### T #?????? | | ??????# """ #?# # # #????# ####! #?????? | | ??????# """ #?# # # #????# #??##= ######## | | ???????? ??# # # ######/##### ^#| | | ?????????#+##### + # ## # + ] | | ?????????# # # ## """""" # # | | ?????????# # # ## "????" # # | +----------------------------------------------------+ Best States ------------- Heat Dissipation 31 Energy Generation 23 Energy Capacity 220 Matter Stores 300 Matter Capacity 300 Sight Range 16 Terrain Scan Density 10 Evasion (%) 68 Recoil Reduction 2 Offensive Hacking 30 Item Schematics ----------------- None Robot Schematics ------------------ None Fabricated ------------ Nothing Alien Tech Used ----------------- None Achievements -------------- None Challenges ------------ None Game ------ Seed BiocellLinearMace Manual? 0 Play Time 00:18:45 Cumulative 22.0 hours Start 2020.07.28 @ 10:06:10 End 2020.07.28 @ 10:24:35 Sessions 1 Manual Loads 0 Difficulty Rogue Special Mode None Game No. 62 Rogue 62 Adventurer 0 Explorer 0 Win Type - Total 0 Types 0/0/0/0/0/0/0 Lore% 26 Gallery% 31 Achievement% 29 Wizard Run 0 Options --------- ASCII 0 Keyboard 0 Movement Mouse Keybinds 0 Fullscreen 1 Font 18/SmallcapsGlow Map View 76x50 Tactical HUD 1 Map Filters NONE Filters NONE Steam 0 RUN: 8977c0b1-79fc-491e-a839-ee8c61ac2f21